bitfinex/quotes_ETHUSD_20250909
["timestamp","ask_amount","ask_price","bid_price","bid_amount"]
[1757422821560,9.68287398,4342.4,4342.3,0.3116]
[1757422821754,9.68287398,4342.4,4342.3,0.002]
[1757422822348,9.68207398,4342.4,4342.3,0.002]
[1757422822551,9.98227398,4342.4,4342.3,0.002]
[1757422822762,9.68207398,4342.4,4342.3,0.002]
[1757422822976,10.91207398,4342.4,4342.3,0.002]
[1757422823495,8.6092,4342.4,4342.3,0.3116]
[1757422823784,11.02647398,4342.4,4342.3,6.2586]
[1757422823988,11.02647398,4342.4,4342.3,5.9166]
[1757422824392,12.25647398,4342.4,4342.3,1.769]
[1757422824575,12.55667398,4342.4,4342.3,1.769]
[1757422824900,14.66207398,4342.4,4342.3,1.769]
[1757422825268,17.15065883,4342.4,4342.3,1.769]
[1757422825704,18.38065883,4342.4,4342.3,1.769]
[1757422826496,18.59433643,4342.4,4342.3,0.002]
[1757422827067,19.61065883,4342.4,4342.3,0.002]
[1757422827284,14.71647398,4342.4,4342.3,0.3116]
[1757422827483,17.12207398,4342.4,4342.3,0.002]
[1757422827905,16.69217398,4342.4,4342.3,0.002]
[1757422828314,18.35207398,4342.4,4342.3,0.002]
[1757422828877,15.94647398,4342.4,4342.3,0.002]
[1757422829799,17.17647398,4342.4,4342.3,0.002]
[1757422830109,19.15217398,4342.4,4342.3,0.002]
[1757422830308,18.85197398,4342.4,4342.3,0.002]
[1757422830617,19.15217398,4342.4,4342.3,0.002]
[1757422830778,19.58207398,4342.4,4342.3,0.002]
[1757422831112,18.40532253,4342.4,4342.3,0.3116]
[1757422831975,18.29092253,4342.4,4342.3,0.3116]
[1757422832288,21.06722253,4342.4,4342.3,0.002]
[1757422832483,25.0192305,4342.4,4342.3,0.002]
[1757422833774,26.2492305,4342.4,4342.3,0.002]
[1757422834872,26.1348305,4342.4,4342.3,0.002]
[1757422835078,27.57838898,4342.4,4342.3,0.002]
[1757422835275,0.792,4342.2,4341.1,0.04]
[1757422835529,3.09551055,4341.2,4341.1,0.04]
[1757422835705,3.38201055,4341.2,4341.1,0.04]
[1757422835909,5.41951055,4341.2,4341.1,0.04]
[1757422836710,6.64951055,4341.2,4341.1,0.04]
[1757422837896,7.87951055,4341.2,4341.1,0.04]
[1757422838098,9.35070682,4341.2,4341.1,0.04]
[1757422839214,10.58070682,4341.2,4341.1,0.04]
[1757422839715,6.78551055,4341.2,4341.1,0.3407]
[1757422839917,5.99351055,4341.2,4341.1,0.3407]
[1757422840617,7.22351055,4341.2,4341.1,0.3407]
[1757422841029,7.22351055,4341.2,4341.1,0.3427]
[1757422841916,6.15,4341.2,4341.1,0.3427]
[1757422843087,8.45351055,4341.2,4341.1,0.3427]
[1757422843425,9.68351055,4341.2,4341.1,0.3427]
[1757422844117,9.68351055,4341.2,4341.1,2.1097]
[1757422844318,7.38,4341.2,4341.1,2.1097]
[1757422844687,8.61,4341.2,4341.1,2.1097]
[1757422845490,8.61,4341.2,4341.1,2.4517]
[1757422845690,8.61,4341.2,4341.1,4.92186361]
[1757422846023,9.84,4341.2,4341.1,38.6126582]
[1757422846212,9.498,4341.2,4341.1,44.1366582]
[1757422846383,19.67904855,4342.4,4341.2,3.0]
[1757422846589,19.67904855,4342.4,4342.3,2.30292702]
[1757422846815,19.67904855,4342.4,4342.3,10.90992702]
[1757422847023,19.67904855,4342.4,4342.3,10.96212702]
[1757422847498,20.90904855,4342.4,4342.3,10.96212702]
[1757422848421,20.90824855,4342.4,4342.3,10.96212702]
[1757422848728,22.13824855,4342.4,4342.3,10.96212702]
[1757422849399,22.13824855,4342.4,4342.3,41.07652702]
[1757422849999,23.36824855,4342.4,4342.3,41.07652702]
[1757422851327,24.59824855,4342.4,4342.3,41.07652702]
[1757422852526,24.59824855,4342.4,4342.3,37.23652702]
[1757422852732,25.82824855,4342.4,4342.3,37.23652702]
[1757422852893,25.82824855,4342.4,4342.3,41.07552702]
[1757422853229,25.82824855,4342.4,4342.3,41.02332702]
[1757422853536,25.82824855,4342.4,4342.3,37.18432702]
[1757422853705,25.82824855,4342.4,4342.3,5.7234]
[1757422854024,25.82824855,4342.4,4342.3,8.7234]
[1757422854226,27.05824855,4342.4,4342.3,11.02632702]
[1757422855707,28.28824855,4342.4,4342.3,11.02632702]
[1757422856099,28.28824855,4342.4,4342.3,7.18432702]
[1757422856338,30.61224855,4342.4,4342.3,8.7224]
[1757422857137,31.84224855,4342.4,4342.3,11.02532702]
[1757422857644,29.51824855,4342.4,4342.3,11.02532702]
[1757422858209,31.84224855,4342.4,4342.3,4.8814]
[1757422858441,33.07224855,4342.4,4342.3,8.608]
[1757422858627,33.07224855,4342.4,4342.3,1.767]
[1757422858825,33.07224855,4342.4,4342.3,5.608]
[1757422859046,33.07224855,4342.4,4342.3,8.608]
[1757422859950,31.97824855,4342.4,4342.3,8.608]
[1757422860110,34.30224855,4342.4,4342.3,8.608]
[1757422860446,32.43234855,4342.4,4342.3,4.767]
[1757422860636,31.97824855,4342.4,4342.3,8.608]
[1757422861024,32.71884855,4342.4,4342.3,8.608]
[1757422861226,34.30224855,4342.4,4342.3,8.608]
[1757422861425,33.20824855,4342.4,4342.3,8.608]
[1757422862172,33.20824855,4342.4,4342.3,10.91092702]
[1757422862384,33.20824855,4342.4,4342.3,11.02532702]
[1757422862867,34.43824855,4342.4,4342.3,11.02532702]
[1757422864342,35.66824855,4342.4,4342.3,11.02532702]
[1757422864541,35.66824855,4342.4,4342.3,41.02532702]
[1757422865613,35.66824855,4342.4,4342.3,41.12902702]
[1757422865784,36.89824855,4342.4,4342.3,41.12902702]
[1757422867310,29.19513199,4342.4,4342.3,41.12902702]
[1757422868449,0.001,4342.7,4342.4,33.792]
[1757422868654,0.001,4343.2,4342.8,3.0]
[1757422868965,0.001,4343.2,4343.1,2.30250282]
[1757422869169,0.001,4343.2,4343.1,41.02490282]
[1757422869384,0.001,4343.2,4343.1,41.12860282]
[1757422869569,0.001,4343.2,4343.1,39.11705147]
[1757422870119,1.231,4343.2,4343.1,39.01335147]
[1757422870812,1.231,4343.2,4343.1,35.17135147]
[1757422870966,1.5316,4343.2,4343.1,29.86884865]
[1757422871168,3.605,4343.2,4343.1,1.766]
[1757422871389,7.10290797,4343.2,4343.1,8.609]
[1757422871570,4.835,4343.2,4343.1,8.609]
[1757422871791,4.835,4343.2,4342.9,5.521]
[1757422871792,7.1374498,4343.2,4342.9,5.521]
[1757422871969,4.37590282,4343.1,4343.0,5.612]
[1757422872164,4.37590282,4343.1,4343.0,4.766]
[1757422872399,6.94441079,4343.1,4341.0,12.3]
[1757422872564,2.30300532,4342.2,4341.0,4.60357638]
[1757422872764,2.30288521,4342.4,4341.2,2.30350924]
[1757422872997,0.3006,4341.9,4341.2,5.30350924]
[1757422873510,0.3006,4341.9,4341.1,10.042]
[1757422873511,2.374,4341.9,4341.1,2.34552336]
[1757422873706,4.67713917,4341.9,4341.1,0.042]
[1757422874080,4.67713917,4341.9,4341.8,3.872]
[1757422874282,5.90713917,4341.9,4341.8,3.872]
[1757422874480,3.604,4341.9,4341.8,6.872]
[1757422874681,3.6032,4341.9,4341.8,6.872]
[1757422875006,1.9988,4341.9,4341.8,6.872]
[1757422875208,1.23,4341.9,4341.8,6.872]
[1757422875394,1.23,4341.9,4341.8,37.16514087]
[1757422875593,1.23,4341.9,4341.8,39.17669222]
[1757422875908,2.46,4341.9,4341.8,39.17669222]
[1757422876405,2.46,4341.9,4341.8,37.16514087]
[1757422877173,3.69,4341.9,4341.8,37.16514087]
[1757422877404,3.69,4341.9,4341.8,9.17669222]
[1757422877817,3.69,4341.9,4341.8,39.17669222]
[1757422878576,4.92,4341.9,4341.8,39.17669222]
[1757422880014,6.15,4341.9,4341.8,40.29659222]
[1757422880837,6.15,4341.9,4341.8,40.29859222]
[1757422881159,6.15,4341.9,4341.8,47.69999222]
[1757422881306,7.381,4341.9,4341.8,47.69999222]
[1757422882155,1.23,4343.1,4343.0,2.30255583]
[1757422882332,1.23,4343.1,4343.0,40.91855583]
[1757422882538,1.5306,4343.1,4343.0,41.03295583]
[1757422882857,3.2296,4343.1,4343.0,41.03295583]
[1757422883151,2.46,4343.1,4343.0,41.03295583]
[1757422883610,2.46,4343.1,4343.0,41.03445583]
[1757422884012,3.69,4343.1,4343.0,41.03445583]
[1757422884874,3.69,4343.1,4343.0,42.15345583]
[1757422885168,3.69,4343.1,4343.0,42.15435583]
[1757422885462,3.69,4343.1,4343.0,41.82645583]
[1757422885661,4.92,4343.1,4343.0,41.82645583]
[1757422886243,4.92,4343.1,4343.0,42.15435583]
[1757422886951,6.15,4343.1,4343.0,42.15435583]
[1757422887627,6.15,4343.1,4343.0,37.97645583]
[1757422887833,6.15,4343.1,4343.0,41.82645583]
[1757422888228,7.38,4343.1,4343.0,41.82645583]
[1757422889863,8.61,4343.1,4343.0,41.82645583]
[1757422890515,8.61,4343.1,4343.0,37.97645583]
[1757422890720,8.61,4343.1,4343.0,41.82445583]
[1757422890961,8.9106,4343.1,4343.0,37.18295583]
[1757422891163,12.214,4343.1,4343.0,41.03195583]
[1757422892657,10.6096,4343.1,4343.0,41.03195583]
[1757422892846,11.07,4343.1,4343.0,41.03195583]
[1757422893420,11.07,4343.1,4343.0,43.21805583]
[1757422894133,12.3,4343.1,4343.0,43.21805583]
[1757422895549,13.53,4343.1,4343.0,43.21805583]
[1757422895756,13.53,4343.1,4343.0,43.21655583]
[1757422896337,13.53,4343.1,4343.0,48.73655583]
[1757422896848,13.53,4343.1,4343.0,48.73805583]
[1757422896849,14.76,4343.1,4343.0,48.73805583]
[1757422897445,14.76,4343.1,4343.0,18.73805583]
[1757422897838,14.76,4343.1,4343.0,48.73805583]
[1757422898040,14.76,4343.1,4343.0,48.73655583]
[1757422898389,18.5225,4343.1,4343.0,48.73755583]
[1757422898565,18.5225,4343.1,4343.0,46.43955583]
[1757422898957,18.5225,4343.1,4343.0,16.43955583]
[1757422899577,19.7525,4343.1,4343.0,16.43955583]
[1757422900845,20.9817,4343.1,4343.0,16.43955583]
[1757422901056,20.9827,4343.1,4343.0,16.43955583]
[1757422901585,20.9827,4343.1,4343.0,10.286]
[1757422901887,22.07452848,4343.1,4343.0,11.137]
[1757422902052,22.07452848,4343.1,4343.0,11.138]
[1757422902392,25.6070313,4343.1,4343.0,14.138]
[1757422902687,25.6070313,4343.1,4343.0,5.618]
[1757422902898,25.6070313,4343.1,4343.0,1.766]
[1757422903189,25.6070313,4343.1,4343.0,8.618]
[1757422903396,25.6070313,4343.1,4343.0,4.766]
[1757422903600,25.6070313,4343.1,4343.0,1.766]
[1757422903807,26.8370313,4343.1,4343.0,5.618]
[1757422905278,28.0670313,4343.1,4343.0,5.618]
[1757422905599,28.0670313,4343.1,4343.0,5.619]
[1757422906358,2.30303309,4342.1,4342.0,0.1144]
[1757422906559,2.30303309,4342.1,4342.0,2.533]
[1757422906785,2.59193309,4342.1,4342.0,5.533]
[1757422907032,2.5325,4342.1,4342.0,5.533]
[1757422908103,3.7625,4342.1,4342.0,5.533]
[1757422908653,1.23,4342.1,4342.0,5.533]
[1757422908854,1.23,4342.1,4342.0,7.95048613]
[1757422909259,1.23,4342.1,4342.0,7.95198613]
[1757422909668,2.46,4342.1,4342.0,7.95048613]
[1757422911097,3.69,4342.1,4342.0,7.95198613]
[1757422911298,3.69,4342.1,4342.0,37.95198613]
[1757422912601,4.92,4342.1,4342.0,37.95198613]
[1757422914132,6.15,4342.1,4342.0,38.24778613]
[1757422914634,0.77398206,4342.1,4342.0,39.03978613]
[1757422915480,2.00398206,4342.1,4342.0,39.03978613]
[1757422916919,3.23398206,4342.1,4342.0,39.03978613]
[1757422918364,4.46398206,4342.1,4342.0,39.03978613]
[1757422918711,4.46398206,4342.1,4342.0,39.03888613]
[1757422919049,4.46398206,4342.1,4342.0,38.74398613]
[1757422919254,4.75288206,4342.1,4342.0,34.18348613]
[1757422919456,6.99648206,4342.1,4342.0,38.03748613]
[1757422919619,6.99648206,4342.1,4342.0,41.03748613]
[1757422919819,8.22648206,4342.1,4342.0,41.03748613]
[1757422920159,8.22648206,4342.1,4342.0,11.03748613]
[1757422920829,5.69398206,4342.1,4342.0,11.03748613]
[1757422921231,6.92398206,4342.1,4342.0,11.03748613]
[1757422921430,6.92398206,4342.1,4342.0,8.7344]
[1757422921916,6.92398206,4342.1,4342.0,11.03948613]
[1757422922147,7.67148206,4342.1,4342.0,11.03948613]
[1757422922547,7.67148206,4342.1,4342.0,8.7364]
[1757422922786,10.60828206,4342.1,4342.0,4.8824]
[1757422922985,10.60828206,4342.1,4342.0,8.7344]
[1757422923188,10.60828206,4342.1,4342.0,11.03748613]
[1757422924441,11.83828206,4342.1,4342.0,11.03748613]
[1757422925849,13.06828206,4342.1,4342.0,11.03748613]
[1757422926991,13.06748206,4342.1,4342.0,8.7344]
[1757422927189,14.29748206,4342.1,4342.0,8.7344]
[1757422927489,11.84318206,4342.1,4342.0,11.03748613]
[1757422927783,11.84318206,4342.1,4342.0,11.03898613]
[1757422927983,11.84318206,4342.1,4342.0,41.03898613]
[1757422928765,13.37268206,4342.1,4342.0,16.55848613]
[1757422928950,15.52748206,4342.1,4342.0,16.55848613]
[1757422929149,15.52748206,4342.1,4342.0,12.70648613]
[1757422929380,15.52748206,4342.1,4342.0,16.55948613]
[1757422930253,16.75748206,4342.1,4342.0,16.55948613]
[1757422931472,17.98748206,4342.1,4342.0,16.55948613]
[1757422931783,15.53318206,4342.1,4342.0,16.55948613]
[1757422932360,15.53318206,4342.1,4342.0,16.56098613]
[1757422932561,15.53318206,4342.1,4342.0,46.56098613]
[1757422932890,16.76318206,4342.1,4342.0,46.56098613]
[1757422933092,16.76318206,4342.1,4342.0,46.55948613]
[1757422934301,18.74068206,4342.1,4342.0,46.55948613]
[1757422934660,17.99318206,4342.1,4342.0,46.55948613]
[1757422934998,18.29268206,4342.1,4342.0,46.55948613]
[1757422935202,17.99318206,4342.1,4342.0,46.56098613]
[1757422935501,17.99318206,4342.1,4342.0,46.84288613]
[1757422935701,19.22318206,4342.1,4342.0,46.56098613]
[1757422936016,19.22318206,4342.1,4342.0,42.70648613]
[1757422936315,19.52268206,4342.1,4342.0,42.70648613]
[1757422936481,19.22318206,4342.1,4342.0,46.55948613]
[1757422936670,21.67748206,4342.1,4342.0,46.55948613]
[1757422937138,20.45318206,4342.1,4342.0,46.55948613]
[1757422937803,20.45318206,4342.1,4342.0,46.56098613]
[1757422938241,20.45318206,4342.1,4342.0,46.55948613]
[1757422938411,21.68318206,4342.1,4342.0,46.55948613]
[1757422939023,22.43068206,4342.1,4342.0,46.55948613]
[1757422939342,21.68318206,4342.1,4342.0,46.55948613]
[1757422939751,25.36748206,4342.1,4342.0,12.70648613]
[1757422939897,25.36748206,4342.1,4342.0,16.55948613]
[1757422941146,26.59748206,4342.1,4342.0,16.55948613]
[1757422941452,26.59848206,4342.1,4342.0,16.55948613]
[1757422941940,26.59848206,4342.1,4342.0,14.2564]
[1757422942149,26.59848206,4342.1,4342.0,16.55948613]
[1757422942646,27.82848206,4342.1,4342.0,16.55948613]
[1757422944061,29.05848206,4342.1,4342.0,16.55948613]
[1757422944357,27.35168206,4342.1,4342.0,16.55948613]
[1757422944919,29.05848206,4342.1,4342.0,14.2564]
[1757422945267,30.28848206,4342.1,4342.0,16.55948613]
[1757422946758,31.51848206,4342.1,4342.0,16.55948613]
[1757422947746,29.81168206,4342.1,4342.0,16.55948613]
[1757422947960,30.29418206,4342.1,4342.0,16.55948613]
[1757422948161,30.29418206,4342.1,4342.0,16.56098613]
[1757422948393,30.29418206,4342.1,4342.0,46.56098613]
[1757422949344,31.52418206,4342.1,4342.0,46.56098613]
[1757422949544,31.52418206,4342.1,4342.0,47.63488613]
[1757422949757,18.16379224,4342.1,4342.0,47.63488613]
[1757422949958,0.001,4342.6,4342.5,2.30282095]
[1757422950253,0.001,4342.6,4342.5,41.45182095]
[1757422950456,0.001,4342.6,4342.5,41.56772095]
[1757422950881,0.001,4342.6,4342.5,37.71622095]
[1757422950882,0.3005,4342.6,4342.5,37.71622095]
[1757422951087,0.001,4342.6,4342.5,41.56722095]
[1757422951759,2.5513,4342.6,4342.5,7.71622095]
[1757422951959,3.7813,4342.6,4342.5,11.56722095]
[1757422952195,3.7813,4342.6,4342.5,5.4134]
[1757422952528,3.7813,4342.6,4342.5,3.9654]
[1757422953180,5.0105,4342.6,4342.5,3.9654]
[1757422953937,4.5747,4342.6,4342.5,6.9654]
[1757422954097,5.0105,4342.6,4342.5,6.9654]
[1757422954631,6.2405,4342.6,4342.5,6.9654]
[1757422954932,6.2405,4342.6,4342.5,9.03793886]
[1757422955082,6.2405,4342.6,4342.5,6.9654]
[1757422956133,7.4705,4342.6,4342.5,6.9654]
[1757422956334,7.4705,4342.6,4342.5,3.1144]
[1757422956633,7.4705,4342.6,4342.5,6.9664]
[1757422956829,9.77326792,4342.6,4342.5,3.1144]
[1757422957136,9.77326792,4342.6,4342.5,6.9674]
[1757422957283,11.00326792,4342.6,4342.5,6.9674]
[1757422957726,8.7005,4342.6,4342.5,6.9674]
[1757422958577,12.23326792,4342.6,4342.5,6.9674]
[1757422960005,13.46326792,4342.6,4342.5,6.9674]
[1757422960210,11.1605,4342.6,4342.5,6.9674]
[1757422960581,13.46326792,4342.6,4342.5,6.9674]
[1757422960786,11.1605,4342.6,4342.5,6.9674]
[1757422961399,12.3905,4342.6,4342.5,6.9674]
[1757422962246,12.3905,4342.6,4342.5,6.9664]
[1757422962699,13.6205,4342.6,4342.5,6.9664]
[1757422964100,14.8505,4342.6,4342.5,6.9664]
[1757422965025,12.3002,4342.6,4342.5,39.04043886]
[1757422965441,13.5302,4342.6,4342.5,39.04043886]
[1757422966602,13.5302,4342.6,4342.5,36.9679]
[1757422966803,17.3105,4342.6,4342.5,3.1144]
[1757422967020,17.3105,4342.6,4342.5,6.853]
[1757422967272,19.61326792,4342.6,4342.5,3.0]
[1757422967564,19.61326792,4342.6,4342.5,6.854]
[1757422968263,18.5405,4342.6,4342.5,6.854]
[1757422969248,18.5405,4342.6,4342.5,3.0]
[1757422969448,19.7705,4342.6,4342.5,6.853]
[1757422969650,22.07326792,4342.6,4342.5,3.0]
[1757422969836,2.30303309,4342.1,4342.0,5.523]
[1757422970169,4.85333309,4342.1,4342.0,10.289]
[1757422970463,4.85333309,4342.1,4342.0,11.143]
[1757422970662,4.85333309,4342.1,4342.0,1.768]
[1757422970867,6.08333309,4342.1,4342.0,4.914]
[1757422971028,6.9219626,4342.1,4342.0,4.914]
[1757422971657,6.9219626,4342.1,4342.0,1.768]
[1757422971858,6.9219626,4342.1,4342.0,5.621]
[1757422972237,8.1519626,4342.1,4342.0,5.621]
[1757422973642,9.3819626,4342.1,4342.0,5.621]
[1757422974246,8.54333309,4342.1,4342.0,5.621]
[1757422975069,9.77333309,4342.1,4342.0,5.621]
[1757422976458,11.00333309,4342.1,4342.0,5.621]
[1757422978008,12.23333309,4342.1,4342.0,5.621]
[1757422978194,12.23333309,4342.1,4342.0,8.621]
[1757422979402,13.46253309,4342.1,4342.0,8.621]
[1757422980598,13.46253309,4342.1,4342.0,8.623]
[1757422980811,13.46253309,4342.1,4342.0,1.768]
[1757422980812,16.2805226,4342.1,4342.0,1.768]
[1757422980964,16.2805226,4342.1,4342.0,4.921]
[1757422981509,2.30313917,4341.9,4341.8,0.027]
[1757422981804,0.1144,4342.0,4341.1,0.042]
[1757422981805,3.09529832,4341.6,4341.1,0.042]
[1757422981967,3.94025268,4341.6,4341.5,3.858]
[1757422982169,5.17025268,4341.6,4341.5,3.858]
[1757422982398,7.45795268,4341.6,4341.5,3.858]
[1757422983708,8.68795268,4341.6,4341.5,3.858]
[1757422985038,9.91795268,4341.6,4341.5,3.858]
[1757422986538,11.14795268,4341.6,4341.5,3.858]
[1757422987035,11.14795268,4341.6,4340.8,0.025]
[1757422987036,0.792,4341.4,4340.8,0.025]
[1757422987193,2.41775137,4341.5,4340.4,1.767]
[1757422987194,2.30388204,4340.5,4340.4,1.767]
[1757422987394,4.89668204,4340.5,4340.4,4.897]
[1757422988231,6.12668204,4340.5,4340.4,4.897]
[1757422989400,7.35668204,4340.5,4340.4,4.897]
[1757422989908,2.30420055,4339.9,4339.5,1.767]
[1757422990113,2.41940055,4339.9,4339.8,6.881]
[1757422990421,5.01220055,4339.9,4339.8,3.881]
[1757422990997,5.01220055,4339.9,4338.0,0.0009]
[1757422990998,0.792,4339.6,4337.8,1.792]
[1757422991235,0.792,4339.2,4338.5,0.572]
[1757422991443,1.0971,4338.9,4338.5,0.572]
[1757422991731,3.40183161,4338.9,4338.5,0.572]
[1757422991935,5.68953161,4338.9,4338.5,0.572]
[1757422992097,3.09680933,4338.8,4337.8,1.792]
[1757422992297,0.792,4338.6,4337.9,1.033]
[1757422992501,2.30520977,4338.0,4337.9,1.033]
[1757422992702,2.73960977,4338.0,4337.9,1.033]
[1757422992899,3.04470977,4338.0,4337.9,1.033]
[1757422993101,4.1582441,4338.5,4337.9,1.0345]
[1757422993102,1.8533,4338.5,4337.9,1.0345]
[1757422993295,2.2877,4338.5,4337.9,1.0345]
[1757422993525,2.30520977,4338.0,4337.8,1.792]
[1757422993769,2.30520977,4338.0,4337.9,3.863]
[1757422994145,2.82332098,4338.0,4337.8,0.025]
[1757422994355,2.30571244,4337.1,4336.8,0.025]
[1757422994583,3.09779446,4336.9,4336.8,0.025]
[1757422994792,3.40289446,4336.9,4336.8,0.025]
[1757422995100,6.49022515,4336.9,4336.8,0.025]
[1757422995248,2.30632625,4335.9,4335.8,0.025]
[1757422995448,2.3060964,4336.4,4335.8,0.025]
[1757422995449,2.30624421,4336.1,4335.8,3.903]
[1757422995656,5.69822734,4336.9,4335.8,3.903]
[1757422995657,2.30603036,4336.5,4336.0,0.0015]
[1757422995963,3.76573698,4338.0,4336.0,0.0015]
[1757422995964,2.2877,4337.5,4336.1,1.768]
[1757422996164,2.2877,4337.5,4335.8,3.903]
[1757422996165,2.51647,4337.5,4335.8,1.793]
[1757422996492,2.30585463,4336.8,4336.0,3.0]
[1757422996780,1.23,4336.9,4335.9,3.884]
[1757422996781,2.30591495,4336.7,4335.9,3.884]
[1757422996982,1.23,4336.9,4336.6,0.0015]
[1757422997187,3.53582999,4336.9,4336.7,1.768]
[1757422997404,3.53579446,4336.9,4336.8,3.997]
[1757422997604,3.84089446,4336.9,4336.8,2.229]
[1757422997770,3.53579446,4336.9,4336.8,2.229]
[1757422997972,1.23,4336.9,4336.8,2.229]
[1757422998212,1.23,4336.9,4336.8,2.2305]
[1757422998398,1.23,4336.9,4336.8,5.2305]
[1757422999106,3.53579446,4336.9,4336.8,6.887]
[1757422999307,1.23,4336.9,4336.8,6.887]
[1757422999515,1.23,4336.9,4336.8,6.8885]
[1757422999885,2.46,4336.9,4336.8,6.8885]
[1757423000898,2.46,4336.9,4336.8,7.0037]
[1757423001286,3.69,4336.9,4336.8,7.0037]
[1757423001814,3.69,4336.9,4336.8,9.46496286]
[1757423002278,3.69,4336.9,4336.8,39.46496286]
[1757423002874,4.92,4336.9,4336.8,39.46496286]
[1757423003279,4.92,4336.9,4336.8,41.65176286]
[1757423004407,1.23,4337.5,4337.4,2.07497579]
[1757423004720,1.23,4337.5,4337.4,11.26697579]
[1757423004894,1.23,4337.5,4337.4,11.65447579]
[1757423005218,0.025,4337.8,4337.7,2.07483228]
[1757423005431,0.0242,4337.8,4337.7,46.28288597]
[1757423005718,0.0242,4337.8,4337.7,46.64733228]
[1757423006889,1.2542,4337.8,4337.7,46.64733228]
[1757423008377,2.4842,4337.8,4337.7,42.75733228]
[1757423008582,2.4842,4337.8,4337.7,40.2965]
[1757423008796,3.2237,4337.8,4337.7,14.186]
[1757423009689,5.077,4337.8,4337.7,14.186]
[1757423009884,6.307,4337.8,4337.7,14.186]
[1757423010084,4.4537,4337.8,4337.7,14.186]
[1757423011102,6.307,4337.8,4337.7,14.186]
[1757423011282,7.537,4337.8,4337.7,14.185]
[1757423011690,4.9442,4337.8,4337.7,16.26133228]
[1757423012011,4.9442,4337.8,4337.7,12.37133228]
[1757423012206,4.9442,4337.8,4337.7,14.1865]
[1757423012443,4.9442,4337.8,4337.7,10.295]
[1757423012739,4.9442,4337.8,4337.7,14.186]
[1757423012740,8.6806,4337.8,4337.7,14.186]
[1757423012940,8.6806,4337.8,4337.7,10.295]
[1757423013100,10.98591605,4337.8,4337.7,7.295]
[1757423013300,10.98591605,4337.8,4337.7,11.186]
[1757423013505,11.10111605,4337.8,4337.7,14.186]
[1757423014101,12.33211605,4337.8,4337.7,14.186]
[1757423014799,10.0268,4337.8,4337.7,14.186]
[1757423015005,7.4052,4337.8,4337.7,14.186]
[1757423015416,8.6352,4337.8,4337.7,14.186]
[1757423015634,8.6352,4337.8,4337.7,14.3012]
[1757423016425,11.1416,4337.8,4337.7,14.3012]
[1757423016744,11.1416,4337.8,4337.7,14.186]
[1757423016745,12.3716,4337.8,4337.7,14.186]
[1757423018147,10.6117,4337.8,4337.7,14.186]
[1757423018337,11.0952,4337.8,4337.7,16.37753228]
[1757423018658,11.0952,4337.8,4337.7,14.3022]
[1757423018848,13.1562,4337.8,4337.7,10.4102]
[1757423019047,13.6016,4337.8,4337.7,14.3052]
[1757423019437,11.0952,4337.8,4337.7,14.3052]
[1757423019841,13.0717,4337.8,4337.7,14.3052]
[1757423020045,13.0717,4337.8,4337.7,16.38003228]
[1757423020245,12.3252,4337.8,4337.7,16.38003228]
[1757423020422,12.3252,4337.8,4337.7,14.3052]
[1757423021161,13.5552,4337.8,4337.7,14.3052]
[1757423021349,14.3017,4337.8,4337.7,14.3052]
[1757423022667,15.5317,4337.8,4337.7,14.3052]
[1757423023068,15.5317,4337.8,4337.7,14.3022]
[1757423023439,17.2916,4337.8,4337.7,10.4102]
[1757423023639,17.2916,4337.8,4337.7,14.3022]
[1757423023838,18.5216,4337.8,4337.7,14.3022]
[1757423024035,18.5216,4337.8,4337.7,10.4102]
[1757423024234,20.82691605,4337.8,4337.7,11.186]
[1757423024469,18.5216,4337.8,4337.7,14.186]
[1757423024677,20.82691605,4337.8,4337.7,11.186]
[1757423024966,20.82691605,4337.8,4337.7,14.186]
[1757423025165,18.5216,4337.8,4337.7,14.186]
[1757423025348,19.7516,4337.8,4337.7,14.186]
[1757423025940,22.05691605,4337.8,4337.7,14.186]
[1757423026658,23.28691605,4337.8,4337.7,14.186]
[1757423027448,23.28691605,4337.8,4337.7,10.295]
[1757423027650,23.28691605,4337.8,4337.7,14.185]
[1757423028065,24.51691605,4337.8,4337.7,14.185]
[1757423029167,24.51691605,4337.8,4337.7,14.184]
[1757423029362,25.74691605,4337.8,4337.7,14.184]
[1757423030795,26.97691605,4337.8,4337.7,14.184]
[1757423031682,26.97611605,4337.8,4337.7,14.184]
[1757423032188,28.20611605,4337.8,4337.7,14.184]
[1757423032385,28.20611605,4337.8,4337.7,10.295]
[1757423032693,28.20611605,4337.8,4337.7,14.182]
[1757423033549,27.1308,4337.8,4337.7,14.182]
[1757423033750,24.6244,4337.8,4337.7,14.1835]
[1757423034852,25.8544,4337.8,4337.7,14.1835]
[1757423036394,27.0844,4337.8,4337.7,14.1835]
[1757423037097,27.0844,4337.8,4337.7,14.182]
[1757423037688,28.3144,4337.8,4337.7,14.182]
[1757423037891,28.3144,4337.8,4337.7,14.1835]
[1757423038322,28.3144,4337.8,4337.7,16.4888692]
[1757423038632,28.3144,4337.8,4337.7,46.4888692]
[1757423038785,28.3144,4337.8,4337.7,46.8519692]
[1757423039126,29.5444,4337.8,4337.7,46.8528692]
[1757423039699,29.5444,4337.8,4337.7,47.6448692]
[1757423040098,29.5444,4337.8,4337.7,49.71279933]
[1757423040299,30.7744,4337.8,4337.7,49.71279933]
[1757423040503,30.7744,4337.8,4337.7,49.71189933]
[1757423040700,30.7744,4337.8,4337.7,46.4868692]
[1757423041104,30.7744,4337.8,4337.7,46.6020692]
[1757423041703,32.0044,4337.8,4337.7,46.6040692]
[1757423041935,32.0044,4337.8,4337.7,46.9680692]
[1757423042230,32.0044,4337.8,4337.7,47.7600692]
[1757423042428,12.3,4337.8,4337.7,47.7600692]
[1757423042638,1e-08,4338.0,4337.9,6.09726291]